Workbook

Sheet Коэф плотности населения (hidden)
A1: РАСЧЁТ
A2: КОЭФФИЦИЕНТА ПЛОТНОСТИ НАСЕЛЕНИЯ
A4: № п.п. | B4: Наименование МО | C4: Численность обслуживаемых, застрахованных лиц на 01.12.17 (чел.) | D4: Кол-во посещений | E4: норматив объёмов на душу населения | F4: Коэффициент плотности населения
A7: 1 | B7: 2 | C7: 3 | D7: 4 | E7: 5 | F7: 6
A8: 1 | B8: ГБУЗ "Магаданская областная детская больница"
A9: 1 | B9: МОГБУЗ "Поликлиника № 1"
A10: 2 | B10: МОГБУЗ "Поликлиника № 2"
A11: 3 | B11: МОГБУЗ "Поликлиника № 3"
A12: 4 | B12: МОГБУЗ "МСЧ "Авиамедицина""
A13: 5 | B13: МОГБУЗ "Ольская РБ"
A14: 6 | B14: МОГБУЗ "Омсукчанская РБ"
A15: 7 | B15: МОГБУЗ "Среднеканская РБ"
A16: 8 | B16: МОГБУЗ "Сусуманская РБ"
A17: 9 | B17: МОГБУЗ "Тенькинская РБ"
A18: 10 | B18: МОГАУЗ "Хасынская РБ"
A19: 11 | B19: МОГБУЗ "Ягоднинская РБ"
B20: ИТОГО Магаданская область (без Северо-Эвенского района) | C20: =SUM(C8:C19) -> 0 | D20: =SUM(D8:D19) -> 0 | E20: =D20/C20 -> 

Sheet АМП 2018 (+ санкции) (hidden)
C3: Предельный объем финансового обеспечения медицинской организаций, имеющих прикрепленное население на 2018 год (за исключением медицинской помощи по акушерству и гинекологии и стоматологической медицинской помощи) + стационар | R3: для расчётов
B4: № п.п. | C4: Наименование МО | D4: Подушевой норматив финасирования АМП на месяц | E4: Численность прикрепленных, застрахованных лиц на 01.03.18 (чел.) | F4: Коэффициенты дифференциации | M4: Дифференцированны подушевой норматив финасирования АМП для i группы | N4: Поправочный коэффициент | O4: Фактический дифференцированный подушевой норматив финансирования АМП | P4: Размер финансового обеспечения медицинской организации, оказывающей АМП по подушевому финансированию на месяц | Q4: Предельный размер финансового обеспечения медицинской организации, оказывающей АМП по подушевому финансированию на год | R4: для расчёта ПК
F5: По половозрастной структуре | G5: Коэффициент плотности населения | H5: По уровню расходов на содержание отдельных структурных подразделений | K5: Интегрированный коэффициент | L5: Средневзвешенное значение Кдинт | T5: разница в финансировании за 5 мес.
H6: АМП | I6: дневной стационар | J6: круглсуточный стационар
D7: Пн БАЗ | E7: Чз ПР | F7: КДПВС | G7: КДПН | H7: КДсп(АМП) | I7: КДсп(ДС) | J7: КДсп(КС) | K7: КДИНТ | L7: СКД интi | M7: Дпнi | N7: ПК | O7: ФДПнi | P7: ФОМЕС | Q7: ФОПРЕД | U7: не удалять - участвует в расчётах | AH7: СУММА НА ГОД | AL7: разица с ежемесяным финансированием с марта 2018 | AP7: должно быть | AQ7: - переместить в круглосутку | AR7: - переместить в дневной
B8: 1 | C8: 2 | D8: 3 | E8: 4 | F8: 5 | G8: 6 | H8: 7 | K8: 7 | L8: 8 | M8: 9 | N8: 10 | O8: 11 | P8: 12
A9: 1343001 | B9: 1 | C9: ГБУЗ "Магаданская областная детская больница" | D9: =D23/'АМП 2018 (+ санкции)'!E22/3 ->  | E9: =#REF! ->  | F9: =#REF! ->  | G9: =ROUND(1/1.2,2) -> 0.83 | H9: 1.5228 | I9: 1 | J9: 1 | K9: =F9*G9*H9*J9*I9 ->  | L9: =V14/X14 ->  | M9: =D9*L9 ->  | N9: =R22/R23 ->  | O9: =M9/N9 ->  | P9: =ROUND($O$9*E9,2) ->  | Q9: =ROUND(P9*3,2) ->  | R9: =$M$9*E9 ->  | S9: =10475186.09*3 -> 31425558.27 | T9: =Q9-S9 ->  | U9: =D9*E9*K9 ->  | W9: =D9*E9 ->  | Z9: 127133453.4 | AA9: 125434123.4 | AB9: =AA9-Z9 -> -1699329.96 | AC9: =Z9-Q9 ->  | AE9: 10594454.45 | AF9: =P9-AE9 ->  | AG9: =ROUND(AF9*10/1000,3) ->  | AH9: =ROUND(Q9/1000,2) ->  | AL9: 10474961.01 | AM9: =P9-AL9 ->  | AN9: =AM9*3 ->  | AO9: =ROUND(AN9/1000,2)-0.02 ->  | AP9: 21888.75 | AQ9: =AP9-AO9-3366.39+7.05 ->  | AR9: =3366.39-7.05 -> 3359.34
B10: 2 | C10: МОГБУЗ "Ольская РБ" | D10: =$D$18 ->  | E10: =#REF! ->  | F10: =#REF! ->  | G10: =ROUND(1/0.95,2) -> 1.05 | H10: 1.0397 | I10: 1 | J10: 1 | K10: =F10*G10*H10*J10*I10 ->  | P10: =ROUND($O$9*E10,2) ->  | Q10: =ROUND(P10*3,2) ->  | S10: =4876887.05*3 -> 14630661.15 | T10: =Q10-S10 ->  | Z10: 59031736.56 | AA10: 58242688.56 | AB10: =AA10-Z10 -> -789048 | AC10: =Z10-Q10 ->  | AE10: 4919311.38 | AF10: =P10-AE10 ->  | AG10: =ROUND(AF10*10/1000,3) ->  | AH10: =ROUND(Q10/1000,2) ->  | AL10: 4876782.27 | AM10: =P10-AL10 ->  | AN10: =AM10*3 ->  | AO10: =ROUND(AN10/1000,2) ->  | AQ10: =-AO10+1000 ->  | AR10: -1000
B11: 4 | C11: МОГБУЗ "Среднеканская РБ" | E11: =#REF! ->  | F11: =#REF! ->  | G11: =ROUND(1/0.95,2) -> 1.05 | H11: 1.0573 | I11: 1 | J11: 1 | S11: =1567117.87*3 -> 4701353.61 | Z11: 19019287.68 | AA11: 18765066.36 | AB11: -254221.32 | AE11: 1584940.64 | AL11: 1567084.2 | AQ11: =-AO11 -> 
B12: 5 | C12: МОГБУЗ "Ягоднинская РБ" | E12: =#REF! ->  | F12: =#REF! ->  | G12: 1.05 | H12: 1.0339 | I12: 1 | J12: 1 | P12: =ROUND($O$9*E12,2) ->  | S12: =5014878.65*3 -> 15044635.95 | Z12: 61306918.08 | AA12: 60487458.84 | AB12: -819459.24 | AE12: 5108909.84 | AH12: =ROUND(Q12/1000,2)-0.01 ->  | AL12: 5014770.9 | AQ12: =-AO12+1000 ->  | AR12: -1000
B13: 6 | C13: МОГБУЗ "Омсукчанская РБ" | E13: =#REF! ->  | F13: =#REF! ->  | G13: 1.05 | H13: 1 | I13: 1 | J13: 1 | S13: =2732436.67*3 -> 8197310.01 | Z13: 33248395.8 | AA13: 32803980.96 | AB13: -444414.84 | AE13: 2770699.65 | AH13: =ROUND(Q13/1000,2)-0.01 ->  | AL13: 2732377.96 | AQ13: =-AO13+1000 ->  | AR13: -1000
B14: 8 | C14: МОГАУЗ "Хасынская РБ" | E14: =#REF! ->  | F14: =#REF! ->  | G14: 1.05 | H14: 1.0364 | I14: 1 | J14: 1 | P14: =ROUND($O$9*E14,2) ->  | S14: =4078362.11*3 -> 12235086.33 | U14: =D14*E14*K14 ->  | V14: =SUM(U9:U14) ->  | W14: =D14*E14 ->  | X14: =SUM(W9:W14) ->  | Z14: 49654299.24 | AA14: 48990594.72 | AB14: =AA14-Z14 -> -663704.52 | AC14: =Z14-Q14 ->  | AE14: 4137858.27 | AF14: =P14-AE14 ->  | AG14: =ROUND(AF14*10/1000,3) ->  | AH14: =ROUND(Q14/1000,2) ->  | AL14: 4078274.49 | AM14: =P14-AL14 ->  | AQ14: =-AO14 -> 
B15: 3 | C15: МОГБУЗ "Сусуманская РБ" | E15: =#REF! ->  | F15: =#REF! ->  | G15: 1.05 | H15: 1 | I15: 1 | J15: 4.53251 | L15: =U15/W15 ->  | M15: =D15*L15 ->  | O15: =M15/$N$9 ->  | P15: =ROUND($O$15*E15,2) ->  | R15: =$M$15*E15 ->  | S15: =4172724.02*3+45910270+4051780 -> 62480222.06 | T15: =Q15-S15 ->  | U15: =D15*E15*K15 ->  | W15: =D15*E15 ->  | Z15: 50951767.56 | AA15: 50270720.52 | AB15: =AA15-Z15 -> -681047.04 | AC15: =Z15-Q15 ->  | AE15: 4245980.64 | AF15: =P15-AE15 ->  | AG15: =ROUND(AF15*10/1000,3) ->  | AH15: =ROUND(Q15/1000,2) ->  | AL15: 13355615.89 | AM15: =P15-AL15 -> 
B16: 7 | C16: МОГБУЗ "Тенькинская РБ" | E16: =#REF! ->  | F16: =#REF! ->  | G16: 1.05 | H16: 1.0707 | I16: 1.1736 | J16: 4.38267 | L16: =U16/W16 ->  | M16: =D16*L16 ->  | O16: =M16/$N$9 ->  | P16: =ROUND($O$16*E16,2)+0.01 ->  | R16: =$M$16*E16 ->  | S16: =2362598.88*3+30046440+7258420+757830 -> 45150486.64 | Z16: 28698032.76 | AA16: 28314440.4 | AB16: -383592.36 | AE16: 2391502.73 | AL16: 9822671.64
B17: 9 | C17: МОГБУЗ "МСЧ "Авиамедицина"" | D17: =D14 ->  | E17: =#REF! ->  | F17: =#REF! ->  | G17: 1.05 | H17: 1 | I17: 1 | J17: 1 | L17: =V20/X20 ->  | M17: =ROUND(D18*L17,2) ->  | O17: =M17/N9 ->  | P17: =ROUND($O$17*E17,2) ->  | R17: =$M$17*E17 ->  | S17: =1020725.2*3 -> 3062175.6 | U17: =D17*E17*K17 ->  | AL17: 1020757.92 | AO17: =ROUND(AN17/1000,2) ->  | AR17: =-AO17 -> 
B18: 10 | C18: МОГБУЗ "Поликлиника № 1" | D18: =$D$9 ->  | E18: =#REF! ->  | F18: =#REF! ->  | G18: =$G$9 -> 0.83 | H18: 1.2854 | I18: 1 | J18: 1 | P18: =ROUND($O$17*E18,2) ->  | R18: =$M$17*E18 ->  | S18: =8330355.19*3 -> 24991065.57 | Z18: 100292892.4 | AA18: 102544500.4 | AB18: 2251608 | AE18: 8357741.03 | AL18: 8330622.22 | AO18: =ROUND(AN18/1000,2) ->  | AR18: =-AO18 -> 
B19: 11 | C19: МОГБУЗ "Поликлиника № 2" | D19: =$D$18 ->  | E19: =#REF! ->  | F19: =#REF! ->  | G19: =$G$9 -> 0.83 | H19: 1.2199 | I19: 1 | J19: 1 | S19: =7095244.85*3 -> 21285734.55 | Z19: 85606912.8 | AA19: 87528815.76 | AB19: 1921902.96 | AE19: 7133909.4 | AL19: 7095472.28 | AO19: =ROUND(AN19/1000,2) -> 
B20: 12 | C20: МОГБУЗ "Поликлиника № 3" | D20: =$D$18 ->  | E20: =#REF! ->  | F20: =#REF! ->  | G20: =$G$9 -> 0.83 | H20: 1 | I20: 1 | J20: 1 | S20: =4735365.42*3 -> 14206096.26 | V20: =SUM(U17:U20) ->  | X20: =SUM(W17:W20) ->  | Z20: 57262841.04 | AA20: 58548410.4 | AB20: 1285569.36 | AE20: 4771903.41 | AL20: 4735517.22 | AO20: =ROUND(AN20/1000,2) -> 
A21: 1340011 | U21: 0 | W21: =D16*E16 ->  | AF21: 0 | AO21: =SUM(AO9:AO20) ->  | AP21: Роддом | AQ21: 971.43
C22: ИТОГО Магаданская область (без Северо-Эвенского района) | E22: =SUM(E9:E20) ->  | P22: =SUM(P9:P20) ->  | Q22: =SUM(Q9:Q21) ->  | R22: =SUM(R9:R20) ->  | U22: =SUM(U18:U21) ->  | W22: =SUM(W18:W21) ->  | AE22: 57040720 | AG22: =SUM(AG9:AG21) ->  | AH22: =SUM(AH9:AH21) ->  | AO22: =21888.75+971.43 -> 22860.18 | AQ22: =SUM(AQ9:AR21) -> 
D23: =365524540/5*3+21888750+971430+5191060 -> 247365964 | I23: 1.17339 | J23: 4.10413 | P23: =D23/3 -> 82455321.33 | R23: =D23/3 -> 82455321.33 | AF23: =AF22*10 ->  | AN23: =(AN15+AN16)/1000 ->  | AO23: =AO22-AO21 -> 
D24: =D23-Q22 ->  | P24: =P23-P22 ->  | AN24: 5191.06
D25: =56461882*5+30046440+7047170 -> 319403020 | I25: 1.1673 | J25: 4.10786 | Q25: =Q23/#REF! ->  | AN25: =AN24-AN23 -> 
H26: 1.2854 | Q26: =Q25/12 -> 
H27: 1.2199

Sheet АМП 2018 (ДШО +роддом 991,43) (hidden)
C3: Предельный объем финансового обеспечения медицинской организаций, имеющих прикрепленное население на 2018 год (за исключением медицинской помощи по акушерству и гинекологии и стоматологической медицинской помощи) + стационар | R3: для расчётов
B4: № п.п. | C4: Наименование МО | D4: Подушевой норматив финасирования АМП на месяц | E4: Численность прикрепленных, застрахованных лиц на 01.03.18 (чел.) | F4: Коэффициенты дифференциации | M4: Дифференцированны подушевой норматив финасирования АМП для i группы | N4: Поправочный коэффициент | O4: Фактический дифференцированный подушевой норматив финансирования АМП | P4: Размер финансового обеспечения медицинской организации, оказывающей АМП по подушевому финансированию на месяц | Q4: Предельный размер финансового обеспечения медицинской организации, оказывающей АМП по подушевому финансированию на год | R4: для расчёта ПК
F5: По половозрастной структуре | G5: Коэффициент плотности населения | H5: По уровню расходов на содержание отдельных структурных подразделений | K5: Интегрированный коэффициент | L5: Средневзвешенное значение Кдинт | T5: разница в финансировании за 5 мес.
H6: АМП | I6: дневной стационар | J6: круглсуточный стационар
D7: Пн БАЗ | E7: Чз ПР | F7: КДПВС | G7: КДПН | H7: КДсп(АМП) | I7: КДсп(ДС) | J7: КДсп(КС) | K7: КДИНТ | L7: СКД интi | M7: Дпнi | N7: ПК | O7: ФДПнi | P7: ФОМЕС | Q7: ФОПРЕД | U7: не удалять - участвует в расчётах | AH7: СУММА НА ГОД | AL7: разица с ежемесяным финансированием с марта 2018 | AP7: должно быть | AQ7: - переместить в круглосутку | AR7: - переместить в дневной
B8: 1 | C8: 2 | D8: 3 | E8: 4 | F8: 5 | G8: 6 | H8: 7 | K8: 7 | L8: 8 | M8: 9 | N8: 10 | O8: 11 | P8: 12
A9: 1343001 | B9: 1 | C9: ГБУЗ "Магаданская областная детская больница" | D9: =D23/'АМП 2018 (ДШО +роддом 991,43)'!E22/3 ->  | E9: =#REF! ->  | F9: =#REF! ->  | G9: =ROUND(1/1.2,2) -> 0.83 | H9: 1.5228 | I9: 1 | J9: 1 | K9: =F9*G9*H9*J9*I9 ->  | L9: =V14/X14 ->  | M9: =D9*L9 ->  | N9: =R22/R23 ->  | O9: =M9/N9 ->  | P9: =ROUND($O$9*E9,2) ->  | Q9: =ROUND(P9*3,2) ->  | R9: =$M$9*E9 ->  | S9: =10475186.09*5 -> 52375930.45 | T9: =Q9-S9 ->  | U9: =D9*E9*K9 ->  | W9: =D9*E9 ->  | Z9: 127133453.4 | AA9: 125434123.4 | AB9: =AA9-Z9 -> -1699329.96 | AC9: =Z9-Q9 ->  | AE9: 10594454.45 | AF9: =P9-AE9 ->  | AG9: =ROUND(AF9*10/1000,3) ->  | AH9: =ROUND(Q9/1000,2) ->  | AL9: 10474961.01 | AM9: =P9-AL9 ->  | AN9: =AM9*3 ->  | AO9: =ROUND(AN9/1000,2) ->  | AP9: 21888.75 | AQ9: =AP9-AO9 -> 
B10: 2 | C10: МОГБУЗ "Ольская РБ" | D10: =$D$18 ->  | E10: =#REF! ->  | F10: =#REF! ->  | G10: =ROUND(1/0.95,2) -> 1.05 | H10: 1.0397 | I10: 1 | J10: 1 | K10: =F10*G10*H10*J10*I10 ->  | P10: =ROUND($O$9*E10,2) ->  | Q10: =ROUND(P10*3,2) ->  | S10: =4876887.05*5 -> 24384435.25 | T10: =Q10-S10 ->  | Z10: 59031736.56 | AA10: 58242688.56 | AB10: =AA10-Z10 -> -789048 | AC10: =Z10-Q10 ->  | AE10: 4919311.38 | AF10: =P10-AE10 ->  | AG10: =ROUND(AF10*10/1000,3) ->  | AH10: =ROUND(Q10/1000,2) ->  | AL10: 4876782.27 | AM10: =P10-AL10 ->  | AN10: =AM10*3 ->  | AQ10: =-AO10 -> 
B11: 4 | C11: МОГБУЗ "Среднеканская РБ" | E11: =#REF! ->  | F11: =#REF! ->  | G11: =ROUND(1/0.95,2) -> 1.05 | H11: 1.0573 | I11: 1 | J11: 1 | S11: =1567117.87*5 -> 7835589.35 | Z11: 19019287.68 | AA11: 18765066.36 | AB11: -254221.32 | AE11: 1584940.64 | AL11: 1567084.2 | AQ11: =-AO11 -> 
B12: 5 | C12: МОГБУЗ "Ягоднинская РБ" | E12: =#REF! ->  | F12: =#REF! ->  | G12: 1.05 | H12: 1.0339 | I12: 1 | J12: 1 | S12: =5014878.65*5 -> 25074393.25 | Z12: 61306918.08 | AA12: 60487458.84 | AB12: -819459.24 | AE12: 5108909.84 | AH12: =ROUND(Q12/1000,2)-0.01 ->  | AL12: 5014770.9
B13: 6 | C13: МОГБУЗ "Омсукчанская РБ" | E13: =#REF! ->  | F13: =#REF! ->  | G13: 1.05 | H13: 1 | I13: 1 | J13: 1 | S13: =2732436.67*5 -> 13662183.35 | Z13: 33248395.8 | AA13: 32803980.96 | AB13: -444414.84 | AE13: 2770699.65 | AH13: =ROUND(Q13/1000,2)-0.01 ->  | AL13: 2732377.96
B14: 8 | C14: МОГАУЗ "Хасынская РБ" | E14: =#REF! ->  | F14: =#REF! ->  | G14: 1.05 | H14: 1.0364 | I14: 1 | J14: 1 | S14: =4078362.11*5 -> 20391810.55 | U14: =D14*E14*K14 ->  | V14: =SUM(U9:U14) ->  | W14: =D14*E14 ->  | X14: =SUM(W9:W14) ->  | Z14: 49654299.24 | AA14: 48990594.72 | AB14: =AA14-Z14 -> -663704.52 | AC14: =Z14-Q14 ->  | AE14: 4137858.27 | AF14: =P14-AE14 ->  | AG14: =ROUND(AF14*10/1000,3) ->  | AH14: =ROUND(Q14/1000,2) ->  | AL14: 4078274.49 | AM14: =P14-AL14 -> 
B15: 3 | C15: МОГБУЗ "Сусуманская РБ" | E15: =#REF! ->  | F15: =#REF! ->  | G15: 1.05 | H15: 1 | I15: 1 | J15: 4.1276 | L15: =U15/W15 ->  | M15: =D15*L15 ->  | O15: =M15/$N$9 ->  | P15: =ROUND($O$15*E15,2) ->  | R15: =$M$15*E15 ->  | S15: =4172724.02*5+45910270 -> 66773890.1 | T15: =Q15-S15 ->  | U15: =D15*E15*K15 ->  | W15: =D15*E15 ->  | Z15: 50951767.56 | AA15: 50270720.52 | AB15: =AA15-Z15 -> -681047.04 | AC15: =Z15-Q15 ->  | AE15: 4245980.64 | AF15: =P15-AE15 ->  | AG15: =ROUND(AF15*10/1000,3) ->  | AH15: =ROUND(Q15/1000,2) ->  | AL15: 13355615.89 | AM15: =P15-AL15 -> 
B16: 7 | C16: МОГБУЗ "Тенькинская РБ" | E16: =#REF! ->  | F16: =#REF! ->  | G16: 1.05 | H16: 1.0707 | I16: 1.1736 | J16: 4.2017 | L16: =U16/W16 ->  | M16: =D16*L16 ->  | O16: =M16/$N$9 ->  | P16: =ROUND($O$16*E16,2) ->  | R16: =$M$16*E16 ->  | S16: =2362598.88*5+30046440+7258420 -> 49117854.4 | Z16: 28698032.76 | AA16: 28314440.4 | AB16: -383592.36 | AE16: 2391502.73 | AL16: 9822671.64
B17: 9 | C17: МОГБУЗ "МСЧ "Авиамедицина"" | D17: =D14 ->  | E17: =#REF! ->  | F17: =#REF! ->  | G17: 1.05 | H17: 1 | I17: 1 | J17: 1 | L17: =V20/X20 ->  | M17: =ROUND(D18*L17,2) ->  | O17: =M17/N9 ->  | P17: =ROUND($O$17*E17,2) ->  | R17: =$M$17*E17 ->  | S17: =1020725.2*5 -> 5103626 | U17: =D17*E17*K17 ->  | AL17: 1020757.92 | AO17: =ROUND(AN17/1000,2) ->  | AR17: =-AO17 -> 
B18: 10 | C18: МОГБУЗ "Поликлиника № 1" | D18: =$D$9 ->  | E18: =#REF! ->  | F18: =#REF! ->  | G18: =$G$9 -> 0.83 | H18: 1.2854 | I18: 1 | J18: 1 | P18: =ROUND($O$17*E18,2) ->  | R18: =$M$17*E18 ->  | S18: =8330355.19*5 -> 41651775.95 | Z18: 100292892.4 | AA18: 102544500.4 | AB18: 2251608 | AE18: 8357741.03 | AL18: 8330622.22 | AO18: =ROUND(AN18/1000,2) ->  | AR18: =-AO18 -> 
B19: 11 | C19: МОГБУЗ "Поликлиника № 2" | D19: =$D$18 ->  | E19: =#REF! ->  | F19: =#REF! ->  | G19: =$G$9 -> 0.83 | H19: 1.2199 | I19: 1 | J19: 1 | S19: =7095244.85*5 -> 35476224.25 | Z19: 85606912.8 | AA19: 87528815.76 | AB19: 1921902.96 | AE19: 7133909.4 | AL19: 7095472.28 | AO19: =ROUND(AN19/1000,2) -> 
B20: 12 | C20: МОГБУЗ "Поликлиника № 3" | D20: =$D$18 ->  | E20: =#REF! ->  | F20: =#REF! ->  | G20: =$G$9 -> 0.83 | H20: 1 | I20: 1 | J20: 1 | S20: =4735365.42*5 -> 23676827.1 | V20: =SUM(U17:U20) ->  | X20: =SUM(W17:W20) ->  | Z20: 57262841.04 | AA20: 58548410.4 | AB20: 1285569.36 | AE20: 4771903.41 | AL20: 4735517.22 | AO20: =ROUND(AN20/1000,2) -> 
A21: 1340011 | U21: 0 | W21: =D16*E16 ->  | AF21: 0 | AO21: =SUM(AO9:AO20) ->  | AP21: Роддом | AQ21: 991.43
C22: ИТОГО Магаданская область (без Северо-Эвенского района) | E22: =SUM(E9:E20) ->  | P22: =SUM(P9:P20) ->  | Q22: =SUM(Q9:Q21) ->  | R22: =SUM(R9:R20) ->  | U22: =SUM(U18:U21) ->  | W22: =SUM(W18:W21) ->  | AE22: 57040720 | AG22: =SUM(AG9:AG21) ->  | AH22: =SUM(AH9:AH21) ->  | AO22: =21888.75+991.43 -> 22880.18 | AQ22: =SUM(AQ9:AR21) -> 
D23: =365524540/5*3+21888750+991430 -> 242194904 | I23: 1.17339 | J23: 4.10413 | P23: =D23/3 -> 80731634.67 | R23: =D23/3 -> 80731634.67 | AF23: =AF22*10 ->  | AO23: =AO22-AO21 -> 
D24: =D23-Q22 ->  | P24: =P23-P22 -> 
D25: =56461882*5+30046440+7047170 -> 319403020 | I25: 1.1673 | J25: 4.10786 | Q25: =Q23/#REF! -> 
H26: 1.2854 | Q26: =Q25/12 -> 
H27: 1.2199

Sheet АМП 2018 (ДШО в подушевой) (hidden)
C3: Предельный объем финансового обеспечения медицинской организаций, имеющих прикрепленное население на 2018 год (за исключением медицинской помощи по акушерству и гинекологии и стоматологической медицинской помощи) + стационар | R3: для расчётов
B4: № п.п. | C4: Наименование МО | D4: Подушевой норматив финасирования АМП на месяц | E4: Численность прикрепленных, застрахованных лиц на 01.03.18 (чел.) | F4: Коэффициенты дифференциации | M4: Дифференцированны подушевой норматив финасирования АМП для i группы | N4: Поправочный коэффициент | O4: Фактический дифференцированный подушевой норматив финансирования АМП | P4: Размер финансового обеспечения медицинской организации, оказывающей АМП по подушевому финансированию на месяц | Q4: Предельный размер финансового обеспечения медицинской организации, оказывающей АМП по подушевому финансированию на год | R4: для расчёта ПК
F5: По половозрастной структуре | G5: Коэффициент плотности населения | H5: По уровню расходов на содержание отдельных структурных подразделений | K5: Интегрированный коэффициент | L5: Средневзвешенное значение Кдинт | T5: разница в финансировании за 5 мес.
H6: АМП | I6: дневной стационар | J6: круглсуточный стационар
D7: Пн БАЗ | E7: Чз ПР | F7: КДПВС | G7: КДПН | H7: КДсп(АМП) | I7: КДсп(ДС) | J7: КДсп(КС) | K7: КДИНТ | L7: СКД интi | M7: Дпнi | N7: ПК | O7: ФДПнi | P7: ФОМЕС | Q7: ФОПРЕД | U7: не удалять - участвует в расчётах | AH7: СУММА НА ГОД | AL7: разица с ежемесяным финансированием с марта 2018 | AO7: должно быть
B8: 1 | C8: 2 | D8: 3 | E8: 4 | F8: 5 | G8: 6 | H8: 7 | K8: 7 | L8: 8 | M8: 9 | N8: 10 | O8: 11 | P8: 12
A9: 1343001 | B9: 1 | C9: ГБУЗ "Магаданская областная детская больница" | D9: =D23/'АМП 2018 (ДШО в подушевой)'!E22/3 ->  | E9: =#REF! ->  | F9: =#REF! ->  | G9: =ROUND(1/1.2,2) -> 0.83 | H9: 1.5228 | I9: 1 | J9: 1 | K9: =F9*G9*H9*J9*I9 ->  | L9: =V14/X14 ->  | M9: =D9*L9 ->  | N9: =R22/R23 ->  | O9: =M9/N9 ->  | P9: =ROUND($O$9*E9,2) ->  | Q9: =ROUND(P9*3,2) ->  | R9: =$M$9*E9 ->  | S9: =10475186.09*5 -> 52375930.45 | T9: =Q9-S9 ->  | U9: =D9*E9*K9 ->  | W9: =D9*E9 ->  | Z9: 127133453.4 | AA9: 125434123.4 | AB9: =AA9-Z9 -> -1699329.96 | AC9: =Z9-Q9 ->  | AE9: 10594454.45 | AF9: =P9-AE9 ->  | AG9: =ROUND(AF9*10/1000,3) ->  | AH9: =ROUND(Q9/1000,2) ->  | AL9: 10474961.01 | AM9: =P9-AL9 ->  | AN9: =AM9*3 ->  | AO9: 21888750 | AP9: =AO9-AN9 ->  | AQ9: - переместить в круглосутку
B10: 2 | C10: МОГБУЗ "Ольская РБ" | D10: =$D$18 ->  | E10: =#REF! ->  | F10: =#REF! ->  | G10: =ROUND(1/0.95,2) -> 1.05 | H10: 1.0397 | I10: 1 | J10: 1 | K10: =F10*G10*H10*J10*I10 ->  | P10: =ROUND($O$9*E10,2) ->  | Q10: =ROUND(P10*3,2) ->  | S10: =4876887.05*5 -> 24384435.25 | T10: =Q10-S10 ->  | Z10: 59031736.56 | AA10: 58242688.56 | AB10: =AA10-Z10 -> -789048 | AC10: =Z10-Q10 ->  | AE10: 4919311.38 | AF10: =P10-AE10 ->  | AG10: =ROUND(AF10*10/1000,3) ->  | AH10: =ROUND(Q10/1000,2) ->  | AL10: 4876782.27 | AM10: =P10-AL10 ->  | AN10: =AM10*3 ->  | AO10: снять с круглосутки
B11: 4 | C11: МОГБУЗ "Среднеканская РБ" | E11: =#REF! ->  | F11: =#REF! ->  | G11: =ROUND(1/0.95,2) -> 1.05 | H11: 1.0573 | I11: 1 | J11: 1 | S11: =1567117.87*5 -> 7835589.35 | Z11: 19019287.68 | AA11: 18765066.36 | AB11: -254221.32 | AE11: 1584940.64 | AL11: 1567084.2
B12: 5 | C12: МОГБУЗ "Ягоднинская РБ" | E12: =#REF! ->  | F12: =#REF! ->  | G12: 1.05 | H12: 1.0339 | I12: 1 | J12: 1 | S12: =5014878.65*5 -> 25074393.25 | Z12: 61306918.08 | AA12: 60487458.84 | AB12: -819459.24 | AE12: 5108909.84 | AH12: =ROUND(Q12/1000,2)-0.01 ->  | AL12: 5014770.9
B13: 6 | C13: МОГБУЗ "Омсукчанская РБ" | E13: =#REF! ->  | F13: =#REF! ->  | G13: 1.05 | H13: 1 | I13: 1 | J13: 1 | S13: =2732436.67*5 -> 13662183.35 | Z13: 33248395.8 | AA13: 32803980.96 | AB13: -444414.84 | AE13: 2770699.65 | AH13: =ROUND(Q13/1000,2)-0.01 ->  | AL13: 2732377.96
B14: 8 | C14: МОГАУЗ "Хасынская РБ" | E14: =#REF! ->  | F14: =#REF! ->  | G14: 1.05 | H14: 1.0364 | I14: 1 | J14: 1 | S14: =4078362.11*5 -> 20391810.55 | U14: =D14*E14*K14 ->  | V14: =SUM(U9:U14) ->  | W14: =D14*E14 ->  | X14: =SUM(W9:W14) ->  | Z14: 49654299.24 | AA14: 48990594.72 | AB14: =AA14-Z14 -> -663704.52 | AC14: =Z14-Q14 ->  | AE14: 4137858.27 | AF14: =P14-AE14 ->  | AG14: =ROUND(AF14*10/1000,3) ->  | AH14: =ROUND(Q14/1000,2) ->  | AL14: 4078274.49 | AM14: =P14-AL14 -> 
B15: 3 | C15: МОГБУЗ "Сусуманская РБ" | E15: =#REF! ->  | F15: =#REF! ->  | G15: 1.05 | H15: 1 | I15: 1 | J15: 4.15145 | L15: =U15/W15 ->  | M15: =D15*L15 ->  | O15: =M15/$N$9 ->  | P15: =ROUND($O$15*E15,2) ->  | R15: =$M$15*E15 ->  | S15: =4172724.02*5+45910270 -> 66773890.1 | T15: =Q15-S15 ->  | U15: =D15*E15*K15 ->  | W15: =D15*E15 ->  | Z15: 50951767.56 | AA15: 50270720.52 | AB15: =AA15-Z15 -> -681047.04 | AC15: =Z15-Q15 ->  | AE15: 4245980.64 | AF15: =P15-AE15 ->  | AG15: =ROUND(AF15*10/1000,3) ->  | AH15: =ROUND(Q15/1000,2) ->  | AL15: 13355615.89 | AM15: =P15-AL15 -> 
B16: 7 | C16: МОГБУЗ "Тенькинская РБ" | E16: =#REF! ->  | F16: =#REF! ->  | G16: 1.05 | H16: 1.0707 | I16: 1.1734 | J16: 4.22665 | L16: =U16/W16 ->  | M16: =D16*L16 ->  | O16: =M16/$N$9 ->  | P16: =ROUND($O$16*E16,2) ->  | R16: =$M$16*E16 ->  | S16: =2362598.88*5+30046440+7258420 -> 49117854.4 | Z16: 28698032.76 | AA16: 28314440.4 | AB16: -383592.36 | AE16: 2391502.73 | AL16: 9822671.64
B17: 9 | C17: МОГБУЗ "МСЧ "Авиамедицина"" | D17: =D14 ->  | E17: =#REF! ->  | F17: =#REF! ->  | G17: 1.05 | H17: 1 | I17: 1 | J17: 1 | L17: =V20/X20 ->  | M17: =ROUND(D18*L17,2) ->  | O17: =M17/N9 ->  | P17: =ROUND($O$17*E17,2) ->  | R17: =$M$17*E17 ->  | S17: =1020725.2*5 -> 5103626 | U17: =D17*E17*K17 ->  | AL17: 1020757.92
B18: 10 | C18: МОГБУЗ "Поликлиника № 1" | D18: =$D$9 ->  | E18: =#REF! ->  | F18: =#REF! ->  | G18: =$G$9 -> 0.83 | H18: 1.2854 | I18: 1 | J18: 1 | P18: =ROUND($O$17*E18,2) ->  | R18: =$M$17*E18 ->  | S18: =8330355.19*5 -> 41651775.95 | Z18: 100292892.4 | AA18: 102544500.4 | AB18: 2251608 | AE18: 8357741.03 | AL18: 8330622.22
B19: 11 | C19: МОГБУЗ "Поликлиника № 2" | D19: =$D$18 ->  | E19: =#REF! ->  | F19: =#REF! ->  | G19: =$G$9 -> 0.83 | H19: 1.2199 | I19: 1 | J19: 1 | S19: =7095244.85*5 -> 35476224.25 | Z19: 85606912.8 | AA19: 87528815.76 | AB19: 1921902.96 | AE19: 7133909.4 | AL19: 7095472.28
B20: 12 | C20: МОГБУЗ "Поликлиника № 3" | D20: =$D$18 ->  | E20: =#REF! ->  | F20: =#REF! ->  | G20: =$G$9 -> 0.83 | H20: 1 | I20: 1 | J20: 1 | S20: =4735365.42*5 -> 23676827.1 | V20: =SUM(U17:U20) ->  | X20: =SUM(W17:W20) ->  | Z20: 57262841.04 | AA20: 58548410.4 | AB20: 1285569.36 | AE20: 4771903.41 | AL20: 4735517.22
A21: 1340011 | U21: 0 | W21: =D16*E16 ->  | AF21: 0
C22: ИТОГО Магаданская область (без Северо-Эвенского района) | E22: =SUM(E9:E20) ->  | P22: =SUM(P9:P20) ->  | Q22: =SUM(Q9:Q21) ->  | R22: =SUM(R9:R20) ->  | U22: =SUM(U18:U21) ->  | W22: =SUM(W18:W21) ->  | AE22: 57040720 | AG22: =SUM(AG9:AG21) ->  | AH22: =SUM(AH9:AH21) -> 
D23: =365524540/5*3+21888750 -> 241203474 | I23: 1.17339 | J23: 4.10413 | P23: =D23/3 -> 80401158 | R23: =D23/3 -> 80401158 | AF23: =AF22*10 -> 
D24: =D23-Q22 ->  | P24: =P23-P22 -> 
D25: =56461882*5+30046440+7047170 -> 319403020 | I25: 1.1673 | J25: 4.10786 | Q25: =Q23/#REF! -> 
H26: 1.2854 | Q26: =Q25/12 -> 
H27: 1.2199

Sheet АМП 2017 (терапевты) (без пло) (hidden)
C3: Предельный объем финансового обеспечения медицинской организаций, имеющих прикрепленное население на 2017 год (врачи-терапевты участковые, врачи-педиатры участковые, врачи общей практики) | P3: для расчётов
B4: № п.п. | C4: Наименование МО | D4: Подушевой норматив финасирования АМП на месяц | E4: Численность прикрепленных, застрахованных лиц на 01.01.17 (чел.) | F4: Коэффициенты дифференциации | K4: Дифференцированны подушевой норматив финасирования АМП для i группы | L4: Поправочный коэффициент | M4: Фактический дифференцированный подушевой норматив финансирования АМП | N4: Размер финансового обеспечения медицинской организации, оказывающей АМП по подушевому финансированию на месяц | O4: Предельный размер финансового обеспечения медицинской организации, оказывающей АМП по подушевому финансированию на год | P4: для расчёта ПК
F5: По половозрастной структуре | G5: Коэффициент плотности населения | H5: По уровню расходов на содержание отдельных структурных подразделений | I5: Интегрированный коэффициент | J5: Средневзвешенное значение Кдинт
D6: Пн БАЗ | E6: Чз ПР | F6: КДПВС | G6: КДПН | H6: КДсп | I6: КДИНТ | J6: СКД интi | K6: Дпнi | L6: ПК | M6: ФДПнi | N6: ФОМЕС | O6: ФОПРЕД | R6: не удалять - участвует в расчётах
B7: 1 | C7: 2 | D7: 3 | E7: 4 | F7: 5 | G7: 6 | H7: 7 | I7: 7 | J7: 8 | K7: 9 | L7: 10 | M7: 11 | N7: 12
A8: 1343001 | C8: ГБУЗ "Магаданская областная детская больница" | D8: =D21/'АМП 2017 (терапевты) (без пло)'!E20/9 ->  | E8: =#REF! ->  | F8: =#REF! ->  | G8: 1 | H8: 1 | I8: =F8*G8*H8 ->  | J8: =S15/U15 ->  | K8: =ROUND(D8*J8,2) ->  | L8: =P20/P21 ->  | M8: =K8/L8 ->  | N8: =ROUND($M$8*E8,2) ->  | O8: =ROUND(N8*9,2) ->  | P8: =E8*$K$8 ->  | Q8: =O8/(E8*D8) ->  | R8: =D8*E8*I8 ->  | T8: =D8*E8 -> 
C9: МОГАУЗ "Хасынская РБ" | D9: =$D$16 ->  | E9: =#REF! ->  | F9: =#REF! ->  | G9: 1 | H9: 1 | N9: =ROUND($M$8*E9,2) ->  | O9: =ROUND(N9*9,2) ->  | P9: =E9*$K$8 ->  | Q9: =O9/(E9*D9) ->  | R9: =D9*E9*I9 ->  | T9: =D9*E9 -> 
C10: МОГБУЗ "Ольская РБ" | E10: =#REF! ->  | F10: =#REF! ->  | G10: 1 | H10: 1
C11: МОГБУЗ "Среднеканская РБ" | E11: =#REF! ->  | F11: =#REF! ->  | G11: 1 | H11: 1
C12: МОГБУЗ "Ягоднинская РБ" | E12: =#REF! ->  | F12: =#REF! ->  | G12: 1 | H12: 1
C13: МОГБУЗ "Омсукчанская РБ" | E13: =#REF! ->  | F13: =#REF! ->  | G13: 1 | H13: 1
C14: МОГБУЗ "Сусуманская РБ" | E14: =#REF! ->  | F14: =#REF! ->  | G14: 1 | H14: 1
C15: МОГБУЗ "Тенькинская РБ" | E15: =#REF! ->  | F15: =#REF! ->  | G15: 1 | H15: 1 | S15: =SUM(R8:R15) ->  | U15: =SUM(T8:T15) -> 
C16: МОГБУЗ "Поликлиника № 1" | D16: =$D$8 ->  | E16: =#REF! ->  | F16: =#REF! ->  | G16: 1 | H16: 1 | I16: =F16*G16*H16 ->  | J16: =S19/U19 ->  | K16: =ROUND(D16*J16,2) ->  | M16: =K16/L8 ->  | N16: =ROUND($M$16*E16,2) ->  | P16: =E16*$K$16 -> 
C17: МОГБУЗ "Поликлиника № 2" | D17: =$D$16 ->  | E17: =#REF! ->  | F17: =#REF! ->  | G17: 1 | H17: 1 | N17: =ROUND($M$16*E17,2) ->  | P17: =E17*$K$16 -> 
C18: МОГБУЗ "Поликлиника № 3" | D18: =$D$16 ->  | E18: =#REF! ->  | F18: =#REF! ->  | G18: 1 | H18: 1 | N18: =ROUND($M$16*E18,2)+0.01 -> 
C19: МОГБУЗ "МСЧ "Авиамедицина"" | D19: =$D$16 ->  | E19: =#REF! ->  | F19: =#REF! ->  | G19: 1 | H19: 1 | I19: =F19*G19*H19 ->  | Q19: =O19/(E19*D19) ->  | R19: =D19*E19*I19 ->  | S19: =SUM(R16:R19) ->  | T19: =D19*E19 ->  | U19: =SUM(T16:T19) -> 
C20: ИТОГО Магаданская область (без Северо-Эвенского района) | E20: =SUM(E8:E19) ->  | N20: =SUM(N8:N19) ->  | O20: =SUM(O8:O19) ->  | P20: =SUM(P8:P19) ->  | Q20: =O20/(E20*D20)*1000 ->  | R20: =SUM(R16:R19) ->  | T20: =SUM(T16:T19) -> 
D21: 272365810 | N21: =D21/9 -> 30262867.78 | P21: =D21/9 -> 30262867.78
D22: =D21-O20 ->  | N22: =N21-N20 ->  | O22: =D21-O20 -> 

Sheet 1. АМП_без Акуш и Стомат
L1: Приложение № 5
L2: к Дополнительному соглашению № 4
L3: от "19" июля 2023 года
C5: Объём финансового обеспечения медицинских организаций, оказывающих амбулаторную медицинскую помощь (за исключением профилей "Акушерство и гинекология" и "Стоматология"), имеющих прикрепившихся лиц
C6: на 2023 год (вступает в действие с 01 июля 2023 года)
C7: Таблица 1
B8: № п/п | C8: Наименование МО | D8: Базовый (средний) подушевой норматив финансирования на месяц, рублей | E8: Численность прикрепленных, застрахованных лиц на 01.07.2023 (чел.) | F8: Коэффициенты | J8: Дифференцированны подушевой норматив финасирования АМП (за исключением профилей "Акушерство и гинекология" и "Стоматология") для i группы (рублей) | K8: Поправочный коэффициент | L8: Фактический дифференцированный подушевой норматив финансирования АМП (за исключением профилей "Акушерство и гинекология" и "Стоматология") для i группы (рублей) | M8: Размер финансового обеспечения медицинской организации, оказывающей АМП (за исключением профилей "Акушерство и гинекология" и "Стоматология") по подушевому финансированию, без учёта выплат по показателям результативности, на месяц с 01.07.2023г. (рублей) | N8: Размер финансового обеспечения медицинской организации, оказывающей АМП (за исключением профилей "Акушерство и гинекология" и "Стоматология") по подушевому финансированию без учёта выплат по показателям результативности, на год (рублей)
F9: Коэффициент половозрастного состава | G9: Коэффициент дифференциации на прикрепившихся к медицинской организации лиц с учетом наличия подразделений, расположенных в сельской местности, отдаленных территориях, поселках городского типа и малых городах с численностью населения до 50 тысяч человек, и расходов на их содержание и оплату труда персонала | H9: Коэффициент уровня расходов медицинских организаций (особенности плотности населения, транспортной доступности, климатических и географических особенностей, площади медицинской организации) | I9: Коэффициент достижения целевых показателей уровня заработной платы медицинских работников, предусмотренного "дорожными картами" развития здравоохранения в субъекте Российской Федерации
D10: ПНБАЗ | E10: ЧЗПР | F10: КДПВ | G10: КДот | H10: КДУР | I10: КДЗП | J10: ДПНi | K10: ПК | L10: ФДПнi | M10: ФОМЕС | N10: ФОгод
B11: 1 | C11: 2 | D11: 3 | E11: 4 | F11: 5 | G11: 6 | H11: 7 | I11: 8 | J11: 9 | K11: 10 | L11: 11 | M11: 12 | N11: 13
B12: 1 | C12: ГБУЗ "Магаданская областная детская больница" | D12: - | E12: - | F12: - | G12: - | H12: - | I12: - | J12: - | K12: 0.9544074655 | L12: - | M12: - | N12: 190509479.9
A13: 1343001 | B13: 2 | C13: ГБУЗ "Магаданский областной центр охраны материнства и детства" | D13: 724.8796256 | E13: 19062 | F13: 2.0226 | G13: 1 | H13: 1 | I13: 0.89144 | J13: 1306.977206 | L13: 1247.388803 | M13: 23777725.36 | N13: 142666352.2
B14: 3 | C14: ГБУЗ "Магаданская областная больница" | D14: 724.8796256 | E14: 40339 | F14: 1.1614 | G14: 1.113 | H14: 1 | I14: 1.25098 | J14: 1172.177135 | L14: 1118.734608 | M14: 45128635.35 | N14: 516435074.1
B15: 4 | C15: МОГБУЗ "Городская поликлиника" | D15: 724.8796256 | E15: 71918 | F15: 0.9403 | G15: 1 | H15: 1 | I15: 0.56181 | J15: 382.9321185 | L15: 365.473273 | M15: 26284106.85 | N15: 271941132.9

Sheet 2. АМП_Акушерств
L1: ='1. АМП_без Акуш и Стомат'!L1:N1 -> Приложение № 5
L2: ='1. АМП_без Акуш и Стомат'!L2:N2 -> к Дополнительному соглашению № 4
L3: ='1. АМП_без Акуш и Стомат'!L3:N3 -> от "19" июля 2023 года
C5: Объём финансового обеспечения медицинских организаций, оказывающих амбулаторную медицинскую помощь по профилю "Акушерство и гинекология", имеющих прикрепившихся лиц
C6: ='1. АМП_без Акуш и Стомат'!C6:N6 -> на 2023 год (вступает в действие с 01 июля 2023 года)
C7: Таблица 2
B8: № п/п | C8: Наименование МО | D8: Базовый (средний) подушевой норматив финансирования на месяц, рублей | E8: Численность прикрепленных, застрахованных лиц на 01.07.2023 (чел.) | F8: Коэффициенты | J8: Дифференцированны подушевой норматив финасирования АМП для i группы по профилю "Акушерсвто и гинекология" (рублей) | K8: Поправочный коэффициент | L8: Фактический дифференцированный подушевой норматив финансирования АМП по профилю "Акушерсвто и гинекология" (рублей) | M8: Размер финансового обеспечения медицинской организации, оказывающей АМП по профилю "Акушерсвто и гинекология", имеющих прикреившихся лиц (без учёта выплат по показателям результативности), на месяц с 01.07.2023г. (рублей) | N8: Размер финансового обеспечения медицинской организации, оказывающей АМП по профилю "Акушерсвто и гинекология", имеющих прикреившихся лиц (без учёта выплат по показателям результативности), на год (рублей)
F9: Коэффициент половозрастного состава | G9: Коэффициент дифференциации на прикрепившихся к медицинской организации лиц с учетом наличия подразделений, расположенных в сельской местности, отдаленных территориях, поселках городского типа и малых городах с численностью населения до 50 тысяч человек, и расходов на их содержание и оплату труда персонала | H9: Коэффициент уровня расходов медицинских организаций (особенности плотности населения, транспортной доступности, климатических и географических особенностей, площади медицинской организации) | I9: Коэффициент достижения целевых показателей уровня заработной платы медицинских работников, предусмотренного "дорожными картами" развития здравоохранения в субъекте Российской Федерации
D10: ПНБАЗ/А | E10: ЧЗПР | F10: КДПВ | G10: КДот | H10: КДУР | I10: КДЗП | J10: ДПНi/А | K10: ПК | L10: ФДПнi/А | M10: ФОМЕС/А | N10: ФОгод/А
B11: 1 | C11: 2 | D11: 3 | E11: 4 | F11: 5 | G11: 6 | H11: 7 | I11: 8 | J11: 9 | K11: 10 | L11: 11 | M11: 12 | N11: 13
B12: 1 | C12: ГБУЗ "Магаданский областной центр охраны материнства и детства" | D12: 135.6849221 | E12: 45039 | F12: 1.2501 | G12: 1 | H12: 1 | I12: 1 | J12: 169.6197211 | K12: 0.7689675532 | L12: 130.432062 | M12: 5874529.64 | N12: 35247177.84
B13: 2 | C13: ГБУЗ "Магаданская областная больница" | D13: 135.6849221 | E13: 20112 | F13: 1.2694 | G13: 1.113 | H13: 1 | I13: 1 | J13: 191.7013838 | L13: 147.412144 | M13: 2964753.04 | N13: 42865210.7
B14: 3 | C14: МОГБУЗ "Городская поликлиника" | D14: 135.6849221 | E14: 1275 | F14: 1.3059 | G14: 1 | H14: 1 | I14: 1 | J14: 177.1909397 | L14: 136.254083 | M14: 173723.96 | N14: 2485646.34

Sheet 3. АМП_Стоматология
L1: ='1. АМП_без Акуш и Стомат'!L1:N1 -> Приложение № 5
L2: ='1. АМП_без Акуш и Стомат'!L2:N2 -> к Дополнительному соглашению № 4
L3: ='1. АМП_без Акуш и Стомат'!L3:N3 -> от "19" июля 2023 года
C5: Объём финансового обеспечения медицинских организаций, оказывающих амбулаторную медицинскую помощь по профилю "Стоматология", имеющих прикрепившихся лиц
C6: на 2023 год (вступает в действие с 01 июля 2023 года)
C7: Таблица 3
B8: № п/п | C8: Наименование МО | D8: Базовый (средний) подушевой норматив финансирования на месяц, рублей | E8: Численность прикрепленных, застрахованных лиц на 01.07.2023 (чел.) | F8: Коэффициенты | J8: Дифференцированны подушевой норматив финасирования АМП для i группы по профилю "Стоматология" (рублей) | K8: Поправочный коэффициент | L8: Фактический дифференцированный подушевой норматив финансирования АМП по профилю "Стоматология" (рублей) | M8: Размер финансового обеспечения медицинской организации, оказывающей по профилю "Стоматология", имеющих прикреившихся лиц (без учёта выплат по показателям результативности), на месяц с 01.07.2023г. (рублей) | N8: Размер финансового обеспечения медицинской организации, оказывающей АМП по профилю "Стоматология", имеющих прикреившихся лиц (без учёта выплат по показателям результативности), на год (рублей)
F9: Коэффициент половозрастного состава | G9: Коэффициент дифференциации на прикрепившихся к медицинской организации лиц с учетом наличия подразделений, расположенных в сельской местности, отдаленных территориях, поселках городского типа и малых городах с численностью населения до 50 тысяч человек, и расходов на их содержание и оплату труда персонала | H9: Коэффициент уровня расходов медицинских организаций (особенности плотности населения, транспортной доступности, климатических и географических особенностей, площади медицинской организации) | I9: Коэффициент достижения целевых показателей уровня заработной платы медицинских работников, предусмотренного "дорожными картами" развития здравоохранения в субъекте Российской Федерации
D10: ПНБАЗ/С | E10: ЧЗПР | F10: КДПВ | G10: КДот | H10: КДУР | I10: КДЗП | J10: ДПНi/С | K10: ПК | L10: ФДПнi/С | M10: ФОМЕС/С | N10: ФОгод/С
B11: 1 | C11: 2 | D11: 3 | E11: 4 | F11: 5 | G11: 6 | H11: 7 | I11: 8 | J11: 9 | K11: 10 | L11: 11 | M11: 12 | N11: 13
B12: 1 | C12: ГБУЗ "Магаданская областная больница" | D12: 222.8369823 | E12: 40339 | F12: 1.2472 | G12: 1.113 | H12: 1 | I12: 1 | J12: 309.3275025 | K12: 0.7829261686 | L12: 242.180596 | M12: 9769323.06 | N12: 117107976.3
B13: 2 | C13: МОГБУЗ "Городская поликлиника" | D13: 222.8369823 | E13: 90980 | F13: 1.2281 | G13: 1 | H13: 1 | I13: 1 | J13: 273.666098 | L13: 214.26035 | M13: 19493406.64 | N13: 239862824.9

Sheet тарифы (с плот.) (2) (hidden)
C1: РАСЧЕТ ГРУППОВЫХ ТАРИФОВ НА ПОСЕЩЕНИЕ, ОБРАЩЕНИЕ ВРАЧА-ТЕРАПЕВТА (УЧАСТКОВОГО), ВРАЧА ОБЩЕЙ ПРАКТИКИ НА 2017 ГОД
B4: № п.п. | C4: Наименование МО | D4: Объемы по нормативу ТПОМС (0,327) | E4: Кол-во посещений | F4: Объем финансового обеспечения медицинской организации, оказывающей СМП по подушевому финансированию на год | G4: Тариф для МО | H4: Средневзвешенный тариф для группы
H6: ПОСЕЩЕНИЯ С ПРОФ.ЦЕЛЬЮ | I6: ОБРАЩЕНИЯ ПО ЗАБОЛЕВАНИЮ
B7: 1 | C7: 2 | E7: 3 | F7: 4 | G7: 5 | H7: 6 | I7: 7
C8: МОГБУЗ "Поликлиника № 1" | E8: ='Коэф плотности населения'!D9 -> 0 | F8: =#REF! ->  | G8: =F8/E8 ->  | H8: =K10/L10 ->  | I8: =ROUND(H8*2.9,2) ->  | J8: =G8*E8 ->  | M8: =E8*$H$8 ->  | N8: =M8-F8 ->  | O8: -1549861.671
C9: МОГБУЗ "Поликлиника № 2" | E9: ='Коэф плотности населения'!D10 -> 0 | F9: =#REF! ->  | J9: =G9*E9 ->  | M9: =E9*$H$8 ->  | N9: =M9-F9 ->  | O9: -68940.68569
C10: МОГБУЗ "Поликлиника № 3" | E10: ='Коэф плотности населения'!D11 -> 0 | F10: =#REF! ->  | K10: =SUM(J8:J10) ->  | L10: =SUM(E8:E10) -> 0 | O10: -1288891.359
C11: МОГБУЗ "МСЧ "Авиамедицина"" | E11: ='Коэф плотности населения'!D12 -> 0 | F11: =#REF! ->  | G11: =F11/E11 ->  | H11: =K12/L12 ->  | M11: =E11*$H$11 ->  | O11: 2270037.087
C12: МОГБУЗ "Хасынская РБ" | D12: 20230 | E12: ='Коэф плотности населения'!D18 -> 0 | F12: =#REF! ->  | G12: =F12/E12 ->  | K12: =J12+J11 ->  | L12: =E11+E12 -> 0 | M12: =E12*$H$11 ->  | O12: 637656.6291
C13: ГБУЗ "Магаданская областная детская больница" | E13: ='Коэф плотности населения'!D8 -> 0 | F13: =#REF! ->  | G13: =F13/E13 ->  | H13: =K16/L16 ->  | I13: =ROUND(H13*2.9,2) ->  | J13: =G13*E13 ->  | M13: =E13*$H$13 ->  | O13: 6108091.336
C14: МОГБУЗ "Ольская РБ" | D14: 7000 | E14: ='Коэф плотности населения'!D13 -> 0 | F14: =#REF! ->  | G14: =F14/E14 ->  | J14: =G14*E14 ->  | M14: =E14*$H$13 ->  | O14: 194059.7096
C15: МОГБУЗ "Сусуманская РБ" | D15: 14000 | E15: ='Коэф плотности населения'!D16 -> 0 | F15: =#REF! ->  | G15: =F15/E15 ->  | M15: =E15*$H$13 ->  | O15: -257213.761
C16: МОГБУЗ "Ягоднинская РБ" | D16: 9000 | E16: ='Коэф плотности населения'!D19 -> 0 | F16: =#REF! ->  | K16: =SUM(J13:J16) ->  | L16: =SUM(E13:E16) -> 0 | M16: =E16*$H$13 ->  | O16: -910502.6034
C17: МОГБУЗ "Среднеканская РБ" | D17: 13300 | E17: ='Коэф плотности населения'!D15 -> 0 | F17: =#REF! ->  | G17: =F17/E17 ->  | H17: =K19/L19 ->  | I17: =ROUND(H17*2.9,2) ->  | J17: =G17*E17 ->  | M17: =E17*$H$17 ->  | N17: =M17-F17 ->  | O17: -976490.9787
A18: 1343005 | C18: МОГБУЗ "Омсукчанская РБ" | D18: 5000 | E18: ='Коэф плотности населения'!D14 -> 0 | F18: =#REF! ->  | M18: =E18*$H$17 ->  | O18: -2411700.755
A19: 1340011 | C19: МОГБУЗ "Тенькинская РБ" | D19: 6000 | E19: ='Коэф плотности населения'!D17 -> 0 | F19: =#REF! ->  | K19: =SUM(J17:J19) ->  | L19: =SUM(E17:E19) -> 0 | O19: -1746242.947
C20: ИТОГО Магаданская область (без Северо-Эвенского района) | D20: 443213 | E20: =SUM(E8:E19) -> 0 | F20: =SUM(F8:F19) -> 

Sheet тарифы (с плот.) (hidden)
C1: РАСЧЕТ ГРУППОВЫХ ТАРИФОВ НА ПОСЕЩЕНИЕ, ОБРАЩЕНИЕ ВРАЧА-СПЕЦИАЛИСТА НА 2018 ГОД
B4: № п.п. | C4: Наименование МО | D4: Объемы по нормативу ТПОМС (0,327) | E4: Кол-во посещений | F4: Объем финансового обеспечения медицинской организации, оказывающей СМП по подушевому финансированию на год | G4: Тариф для МО | H4: Средневзвешенный тариф для группы
H6: ПОСЕЩЕНИЯ С ПРОФ.ЦЕЛЬЮ | I6: ОБРАЩЕНИЯ ПО ЗАБОЛЕВАНИЮ
B7: 1 | C7: 2 | E7: 3 | F7: 4 | G7: 5 | H7: 6 | I7: 7
C8: МОГБУЗ "Поликлиника № 1" | E8: 110061 | F8: =#REF! ->  | G8: =F8/E8 ->  | H8: =ROUND(K10/L10,2) ->  | I8: =ROUND(H8*2.9,2) ->  | J8: =G8*E8 ->  | M8: =$H$8*E8 ->  | N8: =M8-F8 -> 
C9: МОГБУЗ "Поликлиника № 3" | E9: 58585 | F9: =#REF! ->  | G9: =F9/E9 ->  | M9: =$H$8*E9 ->  | N9: =M9-F9 -> 
C10: МОГБУЗ "Ягоднинская РБ" | D10: 9000 | E10: 62572 | F10: =#REF! ->  | K10: =F10+F9+F8 ->  | L10: =E10+E9+E8 -> 231218
C11: МОГБУЗ "МСЧ "Авиамедицина"" | E11: 18461 | F11: =#REF! ->  | H11: =ROUND(K11/L11,2) ->  | I11: =ROUND(H11*2.9,2) ->  | J11: =G11*E11 ->  | K11: =F11+F12 ->  | L11: =E11+E12 -> 181202 | M11: =$H$11*E11 ->  | N11: =M11-F11 -> 
C12: ГБУЗ "Магаданская областная детская больница" | E12: 162741 | F12: =#REF! ->  | J12: =G12*E12 ->  | M12: =$H$11*E12 ->  | N12: =M12-F12 -> 
C13: МОГБУЗ "Ольская РБ" | D13: 7000 | E13: 52985 | F13: =#REF! ->  | H13: =ROUND(K14/L14,2) ->  | I13: =ROUND(H13*2.9,2) ->  | J13: =G13*E13 ->  | M13: =$H$13*E13 -> 
C14: МОГБУЗ "Сусуманская РБ" | D14: 14000 | E14: 48246 | F14: =#REF! ->  | K14: =F14+F13+F15 ->  | L14: =E14+E13+E15 -> 175965 | M14: =$H$13*E14 -> 
C15: МОГБУЗ "Поликлиника № 2" | E15: 74734 | F15: =#REF! ->  | G15: =F15/E15 ->  | J15: =G15*E15 ->  | M15: =$H$13*E15 ->  | N15: =M15-F15 -> 
C16: МОГБУЗ "Среднеканская РБ" | D16: 13300 | E16: 14187 | F16: =#REF! ->  | H16: =ROUND(K19/L19,2) ->  | I16: =ROUND(H16*2.9,2) ->  | J16: =G16*E16 ->  | M16: =$H$16*E16 -> 
C17: МОГАУЗ "Хасынская РБ" | D17: 20230 | E17: 35289 | F17: =#REF! ->  | G17: =F17/E17 ->  | J17: =G17*E17 ->  | M17: =$H$16*E17 ->  | N17: =M17-F17 -> 
A18: 1343005 | C18: МОГБУЗ "Омсукчанская РБ" | D18: 5000 | E18: 23081 | F18: =#REF! -> 
A19: 1340011 | C19: МОГБУЗ "Тенькинская РБ" | D19: 6000 | E19: 20821 | F19: =#REF! ->  | K19: =SUM(J16:J19) ->  | L19: =SUM(E16:E19) -> 93378
C20: ИТОГО Магаданская область (без Северо-Эвенского района) | D20: 443213 | E20: =SUM(E8:E19) -> 681763 | F20: =SUM(F8:F19) -> 
E21: 681263
E22: =E21-E20 -> -500

Sheet тарифы (без плотн) (2) (hidden)
C1: РАСЧЕТ ГРУППОВЫХ ТАРИФОВ НА ПОСЕЩЕНИЕ, ОБРАЩЕНИЕ ВРАЧА-ТЕРАПЕВТА (УЧАСТКОВОГО), ВРАЧА ОБЩЕЙ ПРАКТИКИ НА 2017 ГОД
B4: № п.п. | C4: Наименование МО | D4: Объемы по нормативу ТПОМС (0,327) | E4: Кол-во посещений | F4: Объем финансового обеспечения медицинской организации, оказывающей СМП по подушевому финансированию на год | G4: Тариф для МО | H4: Средневзвешенный тариф для группы
H6: ПОСЕЩЕНИЯ С ПРОФ.ЦЕЛЬЮ | I6: ОБРАЩЕНИЯ ПО ЗАБОЛЕВАНИЮ
B7: 1 | C7: 2 | E7: 5 | F7: 7 | G7: 8 | H7: 9 | I7: 10
B8: 1 | C8: ГБУЗ "Магаданская областная детская больница" | E8: ='Коэф плотности населения'!D8 -> 0 | F8: ='АМП 2017 (терапевты) (без пло)'!O8 ->  | G8: =F8/E8 ->  | H8: =K15/L15 ->  | I8: =ROUND(H8*2.9,2) ->  | J8: =E8*G8 ->  | N8: =E8*$H$8 ->  | O8: =N8-F8 ->  | P8: =E8*1.437 -> 0
B9: 5 | C9: МОГБУЗ "Хасынская РБ" | D9: 20230 | E9: ='Коэф плотности населения'!D18 -> 0 | F9: ='АМП 2017 (терапевты) (без пло)'!O9 ->  | G9: =F9/E9 ->  | J9: =E9*G9 ->  | N9: =E9*$H$8 ->  | O9: =N9-F9 ->  | P9: =E9*1.437 -> 0
B10: 6 | C10: МОГБУЗ "Ольская РБ" | D10: 7000 | E10: ='Коэф плотности населения'!D13 -> 0 | F10: ='АМП 2017 (терапевты) (без пло)'!O10 ->  | P10: 0
B11: 7 | C11: МОГБУЗ "Среднеканская РБ" | D11: 13300 | E11: ='Коэф плотности населения'!D15 -> 0 | F11: ='АМП 2017 (терапевты) (без пло)'!O11 ->  | P11: 0
B12: 8 | C12: МОГБУЗ "Ягоднинская РБ" | D12: 9000 | E12: ='Коэф плотности населения'!D19 -> 0 | F12: ='АМП 2017 (терапевты) (без пло)'!O12 ->  | P12: 0
B13: 9 | C13: МОГБУЗ "Омсукчанская РБ" | D13: 5000 | E13: ='Коэф плотности населения'!D14 -> 0 | F13: ='АМП 2017 (терапевты) (без пло)'!O13 ->  | P13: 0
B14: 11 | C14: МОГБУЗ "Сусуманская РБ" | D14: 14000 | E14: ='Коэф плотности населения'!D16 -> 0 | F14: ='АМП 2017 (терапевты) (без пло)'!O14 ->  | P14: 0
B15: 11 | C15: МОГБУЗ "Тенькинская РБ" | D15: 6000 | E15: ='Коэф плотности населения'!D17 -> 0 | F15: ='АМП 2017 (терапевты) (без пло)'!O15 ->  | K15: =SUM(J8:J15) ->  | L15: =SUM(E8:E15) -> 0 | P15: 0
B16: 2 | C16: МОГБУЗ "Поликлиника № 1" | E16: ='Коэф плотности населения'!D9 -> 0 | F16: ='АМП 2017 (терапевты) (без пло)'!O16 ->  | H16: =K19/L19 ->  | I16: =ROUND(H16*2.9,2) ->  | N16: =E16*$H$16 ->  | P16: =E16*0.607 -> 0
B17: 3 | C17: МОГБУЗ "Поликлиника № 2" | E17: ='Коэф плотности населения'!D10 -> 0 | F17: ='АМП 2017 (терапевты) (без пло)'!O17 ->  | N17: =E17*$H$16 ->  | P17: =E17*0.607 -> 0
B18: 4 | C18: МОГБУЗ "Поликлиника № 3" | E18: ='Коэф плотности населения'!D11 -> 0 | F18: ='АМП 2017 (терапевты) (без пло)'!O18 ->  | P18: 0
A19: 1340004 | B19: 10 | C19: МОГБУЗ "МСЧ "Авиамедицина"" | E19: ='Коэф плотности населения'!D12 -> 0 | F19: ='АМП 2017 (терапевты) (без пло)'!O19 ->  | K19: =SUM(J16:J19) ->  | L19: =SUM(E16:E19) -> 0 | P19: 0
C20: ИТОГО Магаданская область (без Северо-Эвенского района) | D20: 443213 | E20: =SUM(E8:E19) -> 0 | F20: =SUM(F8:F19) ->  | J20: 0 | P20: =SUM(P8:P19) -> 0
F21: =F20/E20 ->  | H21: =H8/H16 ->  | P21: =P20/E20 -> 
P22: =F20/(E20*P21) -> 
P23: =P22*'АМП 2017 (терапевты) (без пло)'!J8 -> 
P24: =P22*'АМП 2017 (терапевты) (без пло)'!J16 -> 

Sheet тарифы (без плотн) (hidden)
C1: РАСЧЕТ ГРУППОВЫХ ТАРИФОВ НА ПОСЕЩЕНИЕ, ОБРАЩЕНИЕ ВРАЧА-ТЕРАПЕВТА (УЧАСТКОВОГО), ВРАЧА ОБЩЕЙ ПРАКТИКИ НА 2017 ГОД
B4: № п.п. | C4: Наименование МО | D4: Объемы по нормативу ТПОМС (0,327) | E4: Кол-во посещений | F4: Объем финансового обеспечения медицинской организации, оказывающей СМП по подушевому финансированию на год | G4: Тариф для МО | H4: Средневзвешенный тариф для группы
H6: ПОСЕЩЕНИЯ С ПРОФ.ЦЕЛЬЮ | I6: ОБРАЩЕНИЯ ПО ЗАБОЛЕВАНИЮ
B7: 1 | C7: 2 | E7: 5 | F7: 7 | G7: 8 | H7: 9 | I7: 10
B8: 1 | C8: ГБУЗ "Магаданская областная детская больница" | E8: ='Коэф плотности населения'!D8 -> 0 | F8: ='АМП 2017 (терапевты) (без пло)'!O8 ->  | G8: =F8/E8 ->  | H8: =K12/L12 ->  | J8: =E8*G8 ->  | N8: =E8*$H$8 ->  | O8: =N8-F8 -> 
B9: 2 | C9: МОГБУЗ "Поликлиника № 1" | E9: ='Коэф плотности населения'!D9 -> 0 | F9: ='АМП 2017 (терапевты) (без пло)'!O16 ->  | G9: =F9/E9 ->  | J9: =E9*G9 ->  | N9: =E9*$H$8 ->  | O9: =N9-F9 -> 
B10: 3 | C10: МОГБУЗ "Поликлиника № 2" | E10: ='Коэф плотности населения'!D10 -> 0 | F10: ='АМП 2017 (терапевты) (без пло)'!O17 -> 
B11: 4 | C11: МОГБУЗ "Поликлиника № 3" | E11: ='Коэф плотности населения'!D11 -> 0 | F11: ='АМП 2017 (терапевты) (без пло)'!O18 -> 
B12: 10 | C12: МОГБУЗ "МСЧ "Авиамедицина"" | E12: ='Коэф плотности населения'!D12 -> 0 | F12: ='АМП 2017 (терапевты) (без пло)'!O19 ->  | K12: =SUM(J8:J12) ->  | L12: =SUM(E8:E12) -> 0
B13: 6 | C13: МОГБУЗ "Ольская РБ" | D13: 7000 | E13: ='Коэф плотности населения'!D13 -> 0 | F13: ='АМП 2017 (терапевты) (без пло)'!O10 ->  | H13: =K15/L15 ->  | N13: =E13*$H$13 -> 
B14: 8 | C14: МОГБУЗ "Ягоднинская РБ" | D14: 9000 | E14: ='Коэф плотности населения'!D19 -> 0 | F14: ='АМП 2017 (терапевты) (без пло)'!O12 ->  | N14: =E14*$H$13 -> 
B15: 11 | C15: МОГБУЗ "Сусуманская РБ" | D15: 14000 | E15: ='Коэф плотности населения'!D16 -> 0 | F15: ='АМП 2017 (терапевты) (без пло)'!O14 ->  | K15: =SUM(J13:J15) ->  | L15: =SUM(E13:E15) -> 0
B16: 5 | C16: МОГБУЗ "Хасынская РБ" | D16: 20230 | E16: ='Коэф плотности населения'!D18 -> 0 | F16: ='АМП 2017 (терапевты) (без пло)'!O9 ->  | H16: =K19/L19 ->  | N16: =E16*$H$16 ->  | O16: =N16-F16 -> 
B17: 7 | C17: МОГБУЗ "Среднеканская РБ" | D17: 13300 | E17: ='Коэф плотности населения'!D15 -> 0 | F17: ='АМП 2017 (терапевты) (без пло)'!O11 ->  | N17: =E17*$H$16 -> 
B18: 9 | C18: МОГБУЗ "Омсукчанская РБ" | D18: 5000 | E18: ='Коэф плотности населения'!D14 -> 0 | F18: ='АМП 2017 (терапевты) (без пло)'!O13 -> 
B19: 11 | C19: МОГБУЗ "Тенькинская РБ" | D19: 6000 | E19: ='Коэф плотности населения'!D17 -> 0 | F19: ='АМП 2017 (терапевты) (без пло)'!O15 ->  | K19: =SUM(J16:J19) ->  | L19: =SUM(E16:E19) -> 0
C20: ИТОГО Магаданская область (без Северо-Эвенского района) | D20: 443213 | E20: =SUM(E8:E19) -> 0 | F20: =SUM(F8:F19) ->  | J20: =E20*G20 -> 0
